[Event "Late-Titled-Tuesday-Blitz-June-18-2024"]
[Site "Chess.com"]
[Date "2024.06.18"]
[Round "1"]
[White "Aram7Adam"]
[Black "familijatop71"]
[Result "0-1"]
[WhiteElo "2602"]
[BlackElo "2296"]
[TimeControl "180+1"]
[EndTime "14:08:06 PDT"]
[Termination "familijatop71 won by checkmate"]

1. e4 {[%clk 0:03:00.9]} 1... d5 {[%clk 0:03:00.1]} 2. exd5 {[%clk 0:03:00.7]}
2... Qxd5 {[%clk 0:03:01]} 3. Nc3 {[%clk 0:03:01]} 3... Qa5 {[%clk 0:03:01.5]}
4. d4 {[%clk 0:03:00.6]} 4... c6 {[%clk 0:03:01.6]} 5. Nf3 {[%clk 0:03:00.8]}
5... Nf6 {[%clk 0:03:02.1]} 6. Bc4 {[%clk 0:03:01]} 6... Bf5 {[%clk 0:03:02.1]}
7. O-O {[%clk 0:02:59.3]} 7... e6 {[%clk 0:03:02.1]} 8. Ne5 {[%clk 0:02:57.4]}
8... Nbd7 {[%clk 0:02:56.9]} 9. g4 {[%clk 0:02:51.9]} 9... Nxe5 {[%clk
0:02:55.6]} 10. dxe5 {[%clk 0:02:49.7]} 10... Nxg4 {[%clk 0:02:48.2]} 11. Bf4
{[%clk 0:02:41.5]} 11... Nxe5 {[%clk 0:02:36.4]} 12. Be2 {[%clk 0:02:39.4]}
12... Rd8 {[%clk 0:02:26.9]} 13. Qc1 {[%clk 0:02:37.9]} 13... Ng6 {[%clk
0:02:17.5]} 14. Bg3 {[%clk 0:02:32.9]} 14... Bd6 {[%clk 0:02:12.1]} 15. Qe3
{[%clk 0:02:20.3]} 15... O-O {[%clk 0:01:54]} 16. Rad1 {[%clk 0:01:47.5]} 16...
Bxg3 {[%clk 0:01:34.9]} 17. hxg3 {[%clk 0:01:48.4]} 17... Rxd1 {[%clk
0:01:10.3]} 18. Rxd1 {[%clk 0:01:45.4]} 18... Ne7 {[%clk 0:00:45]} 19. Rd7
{[%clk 0:01:38.4]} 19... Nd5 {[%clk 0:00:44.7]} 20. Nxd5 {[%clk 0:01:33.4]}
20... cxd5 {[%clk 0:00:38.4]} 21. Rxb7 {[%clk 0:01:29.9]} 21... Qxa2 {[%clk
0:00:36.1]} 22. c3 {[%clk 0:01:23]} 22... a5 {[%clk 0:00:32.2]} 23. g4 {[%clk
0:01:11]} 23... Be4 {[%clk 0:00:31.2]} 24. f3 {[%clk 0:01:10.5]} 24... Bg6
{[%clk 0:00:25]} 25. Qf4 {[%clk 0:01:04.2]} 25... Qb1+ {[%clk 0:00:18.6]} 26.
Kf2 {[%clk 0:01:04]} 26... Re8 {[%clk 0:00:13.9]} 27. Rb8 {[%clk 0:01:00]} 27...
f6 {[%clk 0:00:05.6]} 28. Rxe8+ {[%clk 0:00:58.5]} 28... Bxe8 {[%clk 0:00:05.6]}
29. Qb8 {[%clk 0:00:53.9]} 29... Kf7 {[%clk 0:00:04.2]} 30. Qa7+ {[%clk
0:00:36.2]} 30... Kf8 {[%clk 0:00:04.5]} 31. Qc5+ {[%clk 0:00:34.8]} 31... Kf7
{[%clk 0:00:04.1]} 32. Qc7+ {[%clk 0:00:28.1]} 32... Kf8 {[%clk 0:00:04.4]} 33.
Qxa5 {[%clk 0:00:28.2]} 33... Qxb2 {[%clk 0:00:04.4]} 34. Qc5+ {[%clk
0:00:28.4]} 34... Kf7 {[%clk 0:00:04.1]} 35. Qc7+ {[%clk 0:00:27.4]} 35... Kf8
{[%clk 0:00:03.8]} 36. Qd6+ {[%clk 0:00:20.1]} 36... Kf7 {[%clk 0:00:03.6]} 37.
Qc5 {[%clk 0:00:21]} 37... Qb7 {[%clk 0:00:02.3]} 38. Bd3 {[%clk 0:00:19.7]}
38... Qd7 {[%clk 0:00:02.3]} 39. Kg3 {[%clk 0:00:18.4]} 39... e5 {[%clk
0:00:02.5]} 40. Bf5 {[%clk 0:00:17.7]} 40... Qe7 {[%clk 0:00:02]} 41. Qxd5+
{[%clk 0:00:17.8]} 41... Kf8 {[%clk 0:00:01.7]} 42. Bxh7 {[%clk 0:00:18]} 42...
Bf7 {[%clk 0:00:01]} 43. Qa8+ {[%clk 0:00:18]} 43... Be8 {[%clk 0:00:01.6]} 44.
Qa3 {[%clk 0:00:18.5]} 44... Qxa3 {[%clk 0:00:01]} 45. Bc2 {[%clk 0:00:17.5]}
45... Qxc3 {[%clk 0:00:01.9]} 46. Be4 {[%clk 0:00:17.4]} 46... Qc7 {[%clk
0:00:02.7]} 47. Kh4 {[%clk 0:00:17.7]} 47... Bc6 {[%clk 0:00:03.6]} 48. g5
{[%clk 0:00:18.3]} 48... Bxe4 {[%clk 0:00:03.6]} 49. gxf6 {[%clk 0:00:19.2]}
49... gxf6 {[%clk 0:00:03.4]} 50. fxe4 {[%clk 0:00:20.1]} 50... Qc4 {[%clk
0:00:03.8]} 51. Kg4 {[%clk 0:00:21]} 51... Kf7 {[%clk 0:00:04.4]} 52. Kh5 {[%clk
0:00:21.6]} 52... Qd4 {[%clk 0:00:05.3]} 53. Kh6 {[%clk 0:00:21.4]} 53... Qxe4
{[%clk 0:00:04.7]} 54. Kh5 {[%clk 0:00:22]} 54... Qg6+ {[%clk 0:00:04.5]} 55.
Kh4 {[%clk 0:00:22.3]} 55... f5 {[%clk 0:00:05.4]} 56. Kh3 {[%clk 0:00:22.9]}
56... f4 {[%clk 0:00:06]} 57. Kh2 {[%clk 0:00:23.8]} 57... Kf6 {[%clk
0:00:06.7]} 58. Kh3 {[%clk 0:00:24.1]} 58... Kf5 {[%clk 0:00:07.6]} 59. Kh2
{[%clk 0:00:24.1]} 59... e4 {[%clk 0:00:08.5]} 60. Kh3 {[%clk 0:00:24.4]} 60...
f3 {[%clk 0:00:09.4]} 61. Kh4 {[%clk 0:00:24.7]} 61... e3 {[%clk 0:00:10.3]} 62.
Kh3 {[%clk 0:00:24.9]} 62... f2 {[%clk 0:00:11.2]} 63. Kh4 {[%clk 0:00:25.3]}
63... e2 {[%clk 0:00:12.1]} 64. Kh3 {[%clk 0:00:24.8]} 64... Kf4 {[%clk
0:00:12.3]} 65. Kh2 {[%clk 0:00:24.6]} 65... Qg3+ {[%clk 0:00:12.1]} 66. Kh1
{[%clk 0:00:24.9]} 66... f1=Q# {[%clk 0:00:11.8]} 0-1

[Event "Late-Titled-Tuesday-Blitz-June-18-2024"]
[Site "Chess.com"]
[Date "2024.06.18"]
[Round "1"]
[White "elis06"]
[Black "unkiyto"]
[Result "1-0"]
[WhiteElo "2379"]
[BlackElo "2646"]
[TimeControl "180+1"]
[EndTime "14:08:07 PDT"]
[Termination "elis06 won by checkmate"]

1. d4 {[%clk 0:02:56.3]} 1... Nf6 {[%clk 0:02:59]} 2. c4 {[%clk 0:02:55.9]} 2...
g6 {[%clk 0:02:59.2]} 3. h4 {[%clk 0:02:55.5]} 3... Bg7 {[%clk 0:02:55.5]} 4.
Nc3 {[%clk 0:02:55.2]} 4... d5 {[%clk 0:02:54.7]} 5. h5 {[%clk 0:02:38.8]} 5...
gxh5 {[%clk 0:02:45.5]} 6. cxd5 {[%clk 0:02:23.9]} 6... Nxd5 {[%clk 0:02:44.8]}
7. Rxh5 {[%clk 0:02:10]} 7... Nxc3 {[%clk 0:02:40.2]} 8. bxc3 {[%clk 0:02:09.2]}
8... b6 {[%clk 0:02:35]} 9. Nf3 {[%clk 0:01:58.8]} 9... Bb7 {[%clk 0:02:31.9]}
10. Bh6 {[%clk 0:01:52.5]} 10... Bxh6 {[%clk 0:02:27.1]} 11. Rxh6 {[%clk
0:01:52.2]} 11... Nc6 {[%clk 0:02:19.3]} 12. Qc2 {[%clk 0:01:47.9]} 12... Qd7
{[%clk 0:02:15.1]} 13. O-O-O {[%clk 0:01:42.1]} 13... O-O-O {[%clk 0:02:08.3]}
14. e3 {[%clk 0:01:39]} 14... f6 {[%clk 0:02:04.2]} 15. Bb5 {[%clk 0:01:33.5]}
15... a6 {[%clk 0:02:00]} 16. Bd3 {[%clk 0:01:32.7]} 16... Kb8 {[%clk
0:01:58.4]} 17. Rxh7 {[%clk 0:01:28.9]} 17... Rxh7 {[%clk 0:01:57.3]} 18. Bxh7
{[%clk 0:01:29.8]} 18... Na5 {[%clk 0:01:57.1]} 19. Bd3 {[%clk 0:01:25.6]} 19...
Bd5 {[%clk 0:01:52.6]} 20. c4 {[%clk 0:01:23.3]} 20... Bf7 {[%clk 0:01:52.4]}
21. Nd2 {[%clk 0:01:19.9]} 21... Ka7 {[%clk 0:01:50.3]} 22. Nb3 {[%clk
0:01:19.3]} 22... Nc6 {[%clk 0:01:49]} 23. a3 {[%clk 0:01:17.5]} 23... Qd6
{[%clk 0:01:36.8]} 24. Kb2 {[%clk 0:01:13.2]} 24... e5 {[%clk 0:01:33.1]} 25. d5
{[%clk 0:00:56.8]} 25... Ne7 {[%clk 0:01:27.4]} 26. e4 {[%clk 0:00:54.5]} 26...
a5 {[%clk 0:01:21.8]} 27. c5 {[%clk 0:00:53.1]} 27... Qd7 {[%clk 0:01:14.9]} 28.
Qc4 {[%clk 0:00:49.6]} 28... Qc8 {[%clk 0:00:58.8]} 29. Qb5 {[%clk 0:00:37.4]}
29... Qb7 {[%clk 0:00:50.4]} 30. c6 {[%clk 0:00:31.1]} 30... Qa8 {[%clk
0:00:39.8]} 31. Ka1 {[%clk 0:00:21.4]} 31... Nc8 {[%clk 0:00:35.3]} 32. Rb1
{[%clk 0:00:20.2]} 32... Nd6 {[%clk 0:00:32.3]} 33. Qa4 {[%clk 0:00:19.9]} 33...
Kb8 {[%clk 0:00:22.1]} 34. Nc5 {[%clk 0:00:16]} 34... Qa7 {[%clk 0:00:18]} 35.
Nd7+ {[%clk 0:00:15.2]} 35... Ka8 {[%clk 0:00:18.2]} 36. Nxf6 {[%clk 0:00:15]}
36... Rh8 {[%clk 0:00:14.6]} 37. g4 {[%clk 0:00:14.8]} 37... Rh2 {[%clk
0:00:13.5]} 38. f3 {[%clk 0:00:14.4]} 38... Rd2 {[%clk 0:00:12.8]} 39. Qb3
{[%clk 0:00:14.2]} 39... a4 {[%clk 0:00:12.3]} 40. Qc3 {[%clk 0:00:14.1]} 40...
Rf2 {[%clk 0:00:11.3]} 41. Bc2 {[%clk 0:00:10.7]} 41... Qa6 {[%clk 0:00:09.6]}
42. g5 {[%clk 0:00:10.1]} 42... Qc4 {[%clk 0:00:07.7]} 43. Qxc4 {[%clk
0:00:09.5]} 43... Nxc4 {[%clk 0:00:08.3]} 44. Bxa4 {[%clk 0:00:09.3]} 44... Nxa3
{[%clk 0:00:08.5]} 45. Rb2 {[%clk 0:00:09.2]} 45... Rxf3 {[%clk 0:00:08]} 46.
Rb3 {[%clk 0:00:08.8]} 46... Rf1+ {[%clk 0:00:07.9]} 47. Kb2 {[%clk 0:00:08.8]}
47... Nc4+ {[%clk 0:00:07.9]} 48. Ka2 {[%clk 0:00:08.6]} 48... Rf2+ {[%clk
0:00:06]} 49. Ka1 {[%clk 0:00:07.5]} 49... Nd6 {[%clk 0:00:05.2]} 50. Re3 {[%clk
0:00:07]} 50... Kb8 {[%clk 0:00:05.2]} 51. Bb3 {[%clk 0:00:06.8]} 51... Rf4
{[%clk 0:00:05.3]} 52. Bc2 {[%clk 0:00:06.7]} 52... Bg6 {[%clk 0:00:05.5]} 53.
Kb2 {[%clk 0:00:06.4]} 53... Nf7 {[%clk 0:00:05.7]} 54. Rg3 {[%clk 0:00:06.4]}
54... Nd6 {[%clk 0:00:04.9]} 55. Nd7+ {[%clk 0:00:05.4]} 55... Ka7 {[%clk
0:00:04.1]} 56. Nxe5 {[%clk 0:00:05.9]} 56... Bxe4 {[%clk 0:00:04.7]} 57. Bxe4
{[%clk 0:00:06.4]} 57... Nxe4 {[%clk 0:00:05.2]} 58. Ra3+ {[%clk 0:00:06.8]}
58... Kb8 {[%clk 0:00:05.1]} 59. Nd7+ {[%clk 0:00:06.8]} 59... Kc8 {[%clk
0:00:05.6]} 60. Ra8# {[%clk 0:00:07.2]} 1-0

[Event "Late-Titled-Tuesday-Blitz-June-18-2024"]
[Site "Chess.com"]
[Date "2024.06.18"]
[Round "1"]
[White "Tunahan_Makaraci"]
[Black "carloseduar100"]
[Result "1-0"]
[WhiteElo "2611"]
[BlackElo "2259"]
[TimeControl "180+1"]
[EndTime "14:08:10 PDT"]
[Termination "Tunahan_Makaraci won on time"]

1. e4 {[%clk 0:03:00.9]} 1... e6 {[%clk 0:02:57.9]} 2. d4 {[%clk 0:02:59.5]}
2... d5 {[%clk 0:02:58.8]} 3. exd5 {[%clk 0:03:00.4]} 3... exd5 {[%clk
0:02:58.7]} 4. Bf4 {[%clk 0:03:01]} 4... Bd6 {[%clk 0:02:57.2]} 5. Qd2 {[%clk
0:03:00.5]} 5... Ne7 {[%clk 0:02:56.8]} 6. Nc3 {[%clk 0:02:58.1]} 6... a6 {[%clk
0:02:55.1]} 7. O-O-O {[%clk 0:02:52.8]} 7... O-O {[%clk 0:02:54.5]} 8. Bd3
{[%clk 0:02:49.3]} 8... Bf5 {[%clk 0:02:52.2]} 9. Nge2 {[%clk 0:02:42.4]} 9...
Bxd3 {[%clk 0:02:51.6]} 10. Qxd3 {[%clk 0:02:42.5]} 10... Nbc6 {[%clk
0:02:47.7]} 11. h4 {[%clk 0:02:34]} 11... Bxf4+ {[%clk 0:02:38.4]} 12. Nxf4
{[%clk 0:02:34]} 12... Qd6 {[%clk 0:02:39]} 13. g3 {[%clk 0:02:30.5]} 13... Rfe8
{[%clk 0:02:36.6]} 14. Rhe1 {[%clk 0:02:30.1]} 14... b5 {[%clk 0:02:36]} 15. Qf3
{[%clk 0:02:25.8]} 15... Rad8 {[%clk 0:02:30.2]} 16. g4 {[%clk 0:01:53.3]} 16...
b4 {[%clk 0:02:12]} 17. Na4 {[%clk 0:01:52.9]} 17... Ng6 {[%clk 0:02:03.6]} 18.
Nxg6 {[%clk 0:01:49.5]} 18... hxg6 {[%clk 0:02:02.2]} 19. Re3 {[%clk 0:01:20.1]}
19... Na5 {[%clk 0:01:54.4]} 20. Rde1 {[%clk 0:01:15.8]} 20... Rxe3 {[%clk
0:01:54]} 21. fxe3 {[%clk 0:01:12.5]} 21... Re8 {[%clk 0:01:52]} 22. Nc5 {[%clk
0:01:11.6]} 22... Nc4 {[%clk 0:01:39]} 23. b3 {[%clk 0:01:08.6]} 23... Nb6
{[%clk 0:01:34.3]} 24. h5 {[%clk 0:01:05.5]} 24... gxh5 {[%clk 0:01:33.1]} 25.
gxh5 {[%clk 0:01:05.7]} 25... a5 {[%clk 0:01:33.6]} 26. Rf1 {[%clk 0:01:02.6]}
26... Qe7 {[%clk 0:01:29]} 27. Kd2 {[%clk 0:01:01.6]} 27... Kf8 {[%clk
0:00:51.8]} 28. h6 {[%clk 0:00:53.3]} 28... gxh6 {[%clk 0:00:51.7]} 29. Qf4
{[%clk 0:00:53.3]} 29... Kg7 {[%clk 0:00:31.7]} 30. Rg1+ {[%clk 0:00:48.9]}
30... Kh7 {[%clk 0:00:29.8]} 31. Rh1 {[%clk 0:00:37.1]} 31... Qf8 {[%clk
0:00:10.2]} 32. Qxc7 {[%clk 0:00:23.9]} 32... Qg7 {[%clk 0:00:10.5]} 33. Rh2
{[%clk 0:00:15.7]} 33... Qg5 {[%clk 0:00:10]} 34. Qxf7+ {[%clk 0:00:12.5]} 34...
Qg7 {[%clk 0:00:09.3]} 35. Qxe8 {[%clk 0:00:12.2]} 35... Qg3 {[%clk 0:00:07.7]}
36. Qe7+ {[%clk 0:00:11]} 36... Kg6 {[%clk 0:00:07.6]} 37. Qe6+ {[%clk
0:00:09.1]} 37... Kh7 {[%clk 0:00:07.8]} 38. Qf5+ {[%clk 0:00:09.3]} 38... Kg7
{[%clk 0:00:07.8]} 39. Rf2 {[%clk 0:00:07]} 39... Qg6 {[%clk 0:00:06]} 40. Qe5+
{[%clk 0:00:05]} 40... Kg8 {[%clk 0:00:05.1]} 41. Qb8+ {[%clk 0:00:04.1]} 41...
Kh7 {[%clk 0:00:03.5]} 42. Qc7+ {[%clk 0:00:04.3]} 42... Kg8 {[%clk 0:00:02.5]}
43. Qd8+ {[%clk 0:00:04.6]} 43... Kh7 {[%clk 0:00:02.6]} 44. Qe7+ {[%clk
0:00:04.5]} 44... Qg7 {[%clk 0:00:01.7]} 45. Qxg7+ {[%clk 0:00:04.5]} 45... Kxg7
{[%clk 0:00:01.7]} 46. Ne6+ {[%clk 0:00:05.4]} 46... Kg6 {[%clk 0:00:01.7]} 47.
Rf4 {[%clk 0:00:04.3]} 47... h5 {[%clk 0:00:02]} 48. Nf8+ {[%clk 0:00:04.6]}
48... Kg7 {[%clk 0:00:02]} 49. Ne6+ {[%clk 0:00:05.5]} 49... Kg6 {[%clk
0:00:02.5]} 50. Rh4 {[%clk 0:00:05.4]} 50... Nd7 {[%clk 0:00:02]} 51. Nf4+
{[%clk 0:00:05.5]} 51... Kg5 {[%clk 0:00:01.7]} 52. Rxh5+ {[%clk 0:00:06.4]}
52... Kf6 {[%clk 0:00:02.1]} 53. Rh7 {[%clk 0:00:06.1]} 53... Nf8 {[%clk
0:00:01.6]} 54. Ra7 {[%clk 0:00:05.7]} 1-0

[Event "Late-Titled-Tuesday-Blitz-June-18-2024"]
[Site "Chess.com"]
[Date "2024.06.18"]
[Round "1"]
[White "BillCoe"]
[Black "JackRodgers"]
[Result "0-1"]
[WhiteElo "2081"]
[BlackElo "2559"]
[TimeControl "180+1"]
[EndTime "14:08:10 PDT"]
[Termination "JackRodgers won by resignation"]

1. e4 {[%clk 0:02:57.1]} 1... c5 {[%clk 0:02:59.5]} 2. Nf3 {[%clk 0:02:57.6]}
2... g6 {[%clk 0:02:59.6]} 3. d4 {[%clk 0:02:57.7]} 3... cxd4 {[%clk 0:03:00.5]}
4. Nxd4 {[%clk 0:02:57.9]} 4... Bg7 {[%clk 0:02:59.2]} 5. c3 {[%clk 0:02:56.6]}
5... Nc6 {[%clk 0:02:59.5]} 6. Be2 {[%clk 0:02:56.1]} 6... Nf6 {[%clk
0:02:59.7]} 7. Bf3 {[%clk 0:02:55.3]} 7... O-O {[%clk 0:02:57.6]} 8. O-O {[%clk
0:02:55.2]} 8... d5 {[%clk 0:02:53.5]} 9. exd5 {[%clk 0:02:54.2]} 9... Nxd5
{[%clk 0:02:54.4]} 10. g3 {[%clk 0:02:51.1]} 10... Bh3 {[%clk 0:02:51.4]} 11.
Re1 {[%clk 0:02:50.4]} 11... Nxd4 {[%clk 0:02:48.1]} 12. cxd4 {[%clk 0:02:49.6]}
12... e6 {[%clk 0:02:42.2]} 13. Nc3 {[%clk 0:02:48.8]} 13... Rc8 {[%clk
0:02:34.6]} 14. Nxd5 {[%clk 0:02:47.8]} 14... exd5 {[%clk 0:02:35.5]} 15. Bf4
{[%clk 0:02:43.9]} 15... Qb6 {[%clk 0:02:30.4]} 16. Bxd5 {[%clk 0:02:25.6]}
16... Bxd4 {[%clk 0:02:20.9]} 17. Be3 {[%clk 0:02:25]} 17... Bxe3 {[%clk
0:02:15.3]} 18. Rxe3 {[%clk 0:02:25.9]} 18... Rcd8 {[%clk 0:01:56.4]} 19. Qf3
{[%clk 0:02:24.9]} 19... Qxb2 {[%clk 0:01:47.9]} 20. Rae1 {[%clk 0:02:19.2]}
20... Be6 {[%clk 0:01:33.3]} 21. Bxe6 {[%clk 0:02:11.1]} 21... fxe6 {[%clk
0:01:34.2]} 22. Qe2 {[%clk 0:02:10.7]} 22... Rd2 {[%clk 0:01:29.5]} 23. Qc4
{[%clk 0:01:50.6]} 23... Rdxf2 {[%clk 0:01:16.4]} 24. Qxe6+ {[%clk 0:01:47.9]}
24... Kg7 {[%clk 0:01:06.9]} 25. R3e2 {[%clk 0:01:34.3]} 25... Rxe2 {[%clk
0:01:02]} 26. Rxe2 {[%clk 0:01:35.2]} 26... Qd4+ {[%clk 0:00:58.3]} 27. Kg2
{[%clk 0:01:31.6]} 27... b6 {[%clk 0:00:56.3]} 28. Re4 {[%clk 0:01:18.8]} 28...
Qd2+ {[%clk 0:00:52.8]} 29. Kh3 {[%clk 0:01:19]} 29... Qg5 {[%clk 0:00:43.2]}
30. Re5 {[%clk 0:01:08.6]} 30... Qf6 {[%clk 0:00:38.7]} 31. Qd5 {[%clk 0:01:03]}
31... Qf1+ {[%clk 0:00:38.2]} 32. Kh4 {[%clk 0:01:00.8]} 32... Qf6+ {[%clk
0:00:38.4]} 33. Kh3 {[%clk 0:01:00.9]} 33... Rf7 {[%clk 0:00:39]} 34. Re6 {[%clk
0:00:56.7]} 34... Qf1+ {[%clk 0:00:37.4]} 35. Kh4 {[%clk 0:00:56.7]} 35... h6
{[%clk 0:00:33.7]} 36. Qe5+ {[%clk 0:00:56.1]} 36... Kh7 {[%clk 0:00:33.2]} 37.
Re7 {[%clk 0:00:53.4]} 37... g5+ {[%clk 0:00:31]} 38. Kg4 {[%clk 0:00:53.3]}
38... Qf3+ {[%clk 0:00:25.8]} 39. Kh3 {[%clk 0:00:53.4]} 39... Rxe7 {[%clk
0:00:21.4]} 40. Qxe7+ {[%clk 0:00:52.7]} 40... Kg6 {[%clk 0:00:21.9]} 41. Qe8+
{[%clk 0:00:51.2]} 41... Qf7 {[%clk 0:00:22.1]} 42. Qc6+ {[%clk 0:00:50.2]}
42... Qf6 {[%clk 0:00:21.7]} 43. Qe8+ {[%clk 0:00:50.1]} 43... Kg7 {[%clk
0:00:21.3]} 44. Qd7+ {[%clk 0:00:49.1]} 44... Qf7 {[%clk 0:00:21.9]} 45. Qd4+
{[%clk 0:00:48.3]} 45... Kh7 {[%clk 0:00:21.5]} 46. Qe4+ {[%clk 0:00:47.5]}
46... Kg8 {[%clk 0:00:20.5]} 47. Kg2 {[%clk 0:00:45.9]} 47... Qxa2+ {[%clk
0:00:19.2]} 48. Kh3 {[%clk 0:00:45.8]} 48... Qf7 {[%clk 0:00:19.1]} 49. Kg4
{[%clk 0:00:44.9]} 49... Kg7 {[%clk 0:00:18.3]} 50. Kh3 {[%clk 0:00:44.5]} 50...
Qf6 {[%clk 0:00:17.9]} 51. Kg2 {[%clk 0:00:44.3]} 51... Qf7 {[%clk 0:00:16.2]}
52. Qe5+ {[%clk 0:00:44.1]} 52... Kg6 {[%clk 0:00:15.2]} 53. Qd6+ {[%clk
0:00:44]} 53... Qf6 {[%clk 0:00:15.5]} 54. Qd3+ {[%clk 0:00:43.4]} 54... Qf5
{[%clk 0:00:16.1]} 55. Qd6+ {[%clk 0:00:44]} 55... Qf6 {[%clk 0:00:16]} 56. Qd3+
{[%clk 0:00:43.9]} 56... Kg7 {[%clk 0:00:16.7]} 57. Qd7+ {[%clk 0:00:43.8]}
57... Qf7 {[%clk 0:00:17.4]} 58. Qd4+ {[%clk 0:00:43.7]} 58... Kh7 {[%clk
0:00:17.7]} 59. Qe4+ {[%clk 0:00:43.6]} 59... Kg8 {[%clk 0:00:18.1]} 60. Qa8+
{[%clk 0:00:41.2]} 60... Qf8 {[%clk 0:00:18.6]} 61. Qd5+ {[%clk 0:00:41]} 61...
Kg7 {[%clk 0:00:17.6]} 62. Qe5+ {[%clk 0:00:41]} 62... Kg6 {[%clk 0:00:17.8]}
63. Qe6+ {[%clk 0:00:40.9]} 63... Qf6 {[%clk 0:00:16]} 64. Qg8+ {[%clk
0:00:40.9]} 64... Kf5 {[%clk 0:00:15.8]} 65. Qd5+ {[%clk 0:00:40.6]} 65... Qe5
{[%clk 0:00:16.1]} 66. g4+ {[%clk 0:00:40.1]} 66... Kf6 {[%clk 0:00:14.2]} 67.
Qc6+ {[%clk 0:00:39.6]} 67... Qe6 {[%clk 0:00:14.5]} 68. Qc3+ {[%clk 0:00:38.6]}
68... Ke7 {[%clk 0:00:14.8]} 69. Qg7+ {[%clk 0:00:38.5]} 69... Kd6 {[%clk
0:00:15.4]} 70. Qf8+ {[%clk 0:00:37.1]} 70... Kc6 {[%clk 0:00:14.3]} 71. Qa8+
{[%clk 0:00:36.3]} 71... Kc5 {[%clk 0:00:13.1]} 72. Qf3 {[%clk 0:00:36]} 72...
Qd5 {[%clk 0:00:13.1]} 73. Kg3 {[%clk 0:00:35.9]} 73... Qxf3+ {[%clk 0:00:12.5]}
74. Kxf3 {[%clk 0:00:36.8]} 74... a5 {[%clk 0:00:13.2]} 0-1

[Event "Late-Titled-Tuesday-Blitz-June-18-2024"]
[Site "Chess.com"]
[Date "2024.06.18"]
[Round "1"]
[White "lluiss"]
[Black "becemix"]
[Result "0-1"]
[WhiteElo "2277"]
[BlackElo "2613"]
[TimeControl "180+1"]
[EndTime "14:08:13 PDT"]
[Termination "becemix won on time"]

1. Nf3 {[%clk 0:02:58.5]} 1... d5 {[%clk 0:02:59.5]} 2. d4 {[%clk 0:02:57.4]}
2... Nf6 {[%clk 0:02:58.2]} 3. c4 {[%clk 0:02:57.8]} 3... e6 {[%clk 0:02:56.3]}
4. cxd5 {[%clk 0:02:58.7]} 4... exd5 {[%clk 0:02:56.2]} 5. Nc3 {[%clk
0:02:59.2]} 5... c6 {[%clk 0:02:56.6]} 6. Qc2 {[%clk 0:02:58.1]} 6... Be7 {[%clk
0:02:55.8]} 7. Bg5 {[%clk 0:02:57.6]} 7... O-O {[%clk 0:02:55.6]} 8. e3 {[%clk
0:02:57.6]} 8... Nbd7 {[%clk 0:02:55]} 9. Bd3 {[%clk 0:02:57.2]} 9... Re8 {[%clk
0:02:55.3]} 10. O-O-O {[%clk 0:02:55.5]} 10... a5 {[%clk 0:02:54.9]} 11. Kb1
{[%clk 0:02:52.4]} 11... b5 {[%clk 0:02:51.8]} 12. Ne2 {[%clk 0:02:52.1]} 12...
Bb7 {[%clk 0:02:50.2]} 13. Ne5 {[%clk 0:02:52.2]} 13... h6 {[%clk 0:02:26.5]}
14. Bh4 {[%clk 0:02:30.5]} 14... Rc8 {[%clk 0:02:25.2]} 15. Rc1 {[%clk
0:02:28.9]} 15... Nxe5 {[%clk 0:02:10]} 16. dxe5 {[%clk 0:02:28.1]} 16... Nd7
{[%clk 0:02:10.3]} 17. Bg3 {[%clk 0:02:01.6]} 17... b4 {[%clk 0:02:01.3]} 18.
Bh7+ {[%clk 0:01:57.3]} 18... Kh8 {[%clk 0:01:56]} 19. Bf5 {[%clk 0:01:53.5]}
19... c5 {[%clk 0:01:53]} 20. e6 {[%clk 0:01:53.5]} 20... fxe6 {[%clk
0:01:51.4]} 21. Bxe6 {[%clk 0:01:53.5]} 21... Bf6 {[%clk 0:01:50]} 22. Nf4
{[%clk 0:01:50]} 22... Nf8 {[%clk 0:01:30.8]} 23. Bxc8 {[%clk 0:01:49.4]} 23...
Bxc8 {[%clk 0:01:22.8]} 24. Rhd1 {[%clk 0:01:37.1]} 24... d4 {[%clk 0:00:58.7]}
25. Qxc5 {[%clk 0:01:36.2]} 25... Ne6 {[%clk 0:00:52.1]} 26. Nxe6 {[%clk
0:01:25]} 26... Bxe6 {[%clk 0:00:53]} 27. exd4 {[%clk 0:01:20.2]} 27... Be7
{[%clk 0:00:51.2]} 28. Qc7 {[%clk 0:01:14.9]} 28... Qd5 {[%clk 0:00:50.9]} 29.
b3 {[%clk 0:01:11]} 29... Bg5 {[%clk 0:00:37.2]} 30. Be5 {[%clk 0:01:07.5]}
30... Re7 {[%clk 0:00:33.1]} 31. Qb8+ {[%clk 0:01:03.2]} 31... Kh7 {[%clk
0:00:32.6]} 32. f4 {[%clk 0:01:03.1]} 32... Bf6 {[%clk 0:00:10.9]} 33. Bxf6
{[%clk 0:01:02.9]} 33... Qf5+ {[%clk 0:00:11.3]} 34. Kb2 {[%clk 0:00:56.8]}
34... Qxf6 {[%clk 0:00:11.8]} 35. Rc7 {[%clk 0:00:55.5]} 35... Bd7 {[%clk
0:00:06.5]} 36. Rxd7 {[%clk 0:00:32.3]} 36... Rxd7 {[%clk 0:00:06.3]} 37. Qe5
{[%clk 0:00:30.8]} 37... Qf7 {[%clk 0:00:06.4]} 38. Qe4+ {[%clk 0:00:30.4]}
38... Kh8 {[%clk 0:00:03.9]} 39. Re1 {[%clk 0:00:30.6]} 39... Rd8 {[%clk
0:00:04.4]} 40. f5 {[%clk 0:00:29.4]} 40... Qc7 {[%clk 0:00:03.9]} 41. Rc1
{[%clk 0:00:24]} 41... Qxh2 {[%clk 0:00:04.4]} 42. Rc2 {[%clk 0:00:22.9]} 42...
Qd6 {[%clk 0:00:04.6]} 43. Rd2 {[%clk 0:00:20.9]} 43... Qd7 {[%clk 0:00:04.8]}
44. d5 {[%clk 0:00:20.4]} 44... Re8 {[%clk 0:00:05.2]} 45. Qf4 {[%clk
0:00:17.7]} 45... Qe7 {[%clk 0:00:04.9]} 46. g4 {[%clk 0:00:16.3]} 46... Qf6+
{[%clk 0:00:05.3]} 47. Qd4 {[%clk 0:00:14.7]} 47... Qd6 {[%clk 0:00:05.8]} 48.
g5 {[%clk 0:00:12.9]} 48... hxg5 {[%clk 0:00:05.1]} 49. Qd3 {[%clk 0:00:12.2]}
49... Qf6+ {[%clk 0:00:05]} 50. Qd4 {[%clk 0:00:08.8]} 50... Re2 {[%clk
0:00:04.3]} 51. Qxf6 {[%clk 0:00:07]} 51... Rxd2+ {[%clk 0:00:04.4]} 52. Kc1
{[%clk 0:00:07.6]} 52... gxf6 {[%clk 0:00:04.6]} 53. Kxd2 {[%clk 0:00:04]} 53...
Kg8 {[%clk 0:00:05.2]} 0-1